fUST/lending_fUST_20250624
["ID","MTS","AMOUNT","RATE_DAILY","PERIOD"]
[367351772,1750759845762,-416.81704989,0.00019178,2]
[367351775,1750759845772,-460.0,0.00019178,2]
[367351777,1750759845782,-440.0,0.00019178,2]
[367351779,1750759845792,-356.34934045,0.00019178,2]
[367351781,1750759845802,-460.0,0.00019178,2]
[367351783,1750759845811,-460.0,0.00019178,2]
[367351785,1750759845821,-519.18,0.00019178,2]
[367351787,1750759845831,-706.57,0.00019178,2]
[367351788,1750759845840,-460.0,0.00019178,2]
[367351789,1750759845850,-420.0,0.00019178,2]
[367351791,1750759845859,-460.0,0.00019178,2]
[367351793,1750759845869,-430.0,0.00019178,2]
[367351795,1750759845879,-3347.57,0.00019178,2]
[367351797,1750759845888,-694.08,0.00019178,2]
[367351799,1750759845898,-440.0,0.00019178,2]
[367351801,1750759845907,-460.0,0.00019178,2]
[367351803,1750759845917,-460.0,0.00019178,2]
[367351805,1750759845927,-676.87,0.00019178,2]
[367351807,1750759845936,-460.0,0.00019178,2]
[367351809,1750759845946,-460.0,0.00019178,2]
[367351811,1750759845956,-460.0,0.00019178,2]
[367351812,1750759845966,-500.0,0.00019178,2]
[367351813,1750759845976,-254.64818186,0.00019178,2]
[367351814,1750759845986,-460.0,0.00019178,2]
[367351815,1750759845996,-460.0,0.00019178,2]
[367351816,1750759846005,-777.7,0.00019178,2]
[367351817,1750759846015,-927.92,0.00019178,2]
[367351818,1750759846025,-2860.27,0.00019178,2]
[367351819,1750759846035,-460.0,0.00019178,2]
[367351821,1750759846045,-460.0,0.00019178,2]
[367351822,1750759846055,-460.0,0.00019178,2]
[367351824,1750759846065,-177.24133,0.00019178,2]
[367351825,1750759846076,-542.93118438,0.00019178,2]
[367351826,1750759846086,-324.73341755,0.00019385,2]
[367351827,1750759846096,-800.0,0.0001939,2]
[367351828,1750759846106,-225.38,0.00019442,3]
[367351829,1750759846115,-169.21,0.00019442,3]
[367351830,1750759846125,-460.0,0.00019452,2]
[367351831,1750759846136,-199.53349207,0.00019452,2]
[367351832,1750759846145,-460.0,0.00019452,2]
[367351833,1750759846155,-460.0,0.00019452,2]
[367351834,1750759846165,-460.0,0.00019452,2]
[367351835,1750759846175,-460.0,0.00019452,2]
[367351837,1750759846184,-460.0,0.00019452,2]
[367351838,1750759846194,-460.0,0.00019452,2]
[367351839,1750759846204,-460.0,0.00019452,2]
[367351840,1750759846213,-460.0,0.00019452,2]
[367351841,1750759846223,-460.0,0.00019452,2]
[367351842,1750759846233,-460.0,0.00019452,2]
[367351843,1750759846243,-471.4495204,0.00019452,2]
[367351844,1750759846253,-282.16057541,0.00019452,2]
[367351845,1750759846266,-460.0,0.00019452,2]
[367351846,1750759846276,-460.0,0.00019452,2]
[367351847,1750759846286,-440.0,0.00019452,2]
[367351848,1750759846296,-460.0,0.00019452,2]
[367351849,1750759846306,-460.0,0.00019452,2]
[367351850,1750759846317,-540.79488643,0.00019452,2]
[367351851,1750759846326,-460.0,0.00019452,2]
[367351852,1750759846337,-709.89,0.00019452,2]
[367351853,1750759846347,-460.0,0.00019452,2]
[367351854,1750759846357,-460.0,0.00019452,2]
[367351855,1750759846367,-460.0,0.00019452,2]
[367351856,1750759846377,-460.0,0.00019452,2]
[367351857,1750759846387,-460.0,0.00019452,2]
[367351858,1750759846397,-460.0,0.00019452,2]
[367351859,1750759846406,-489.15168904,0.00019452,2]
[367351860,1750759846416,-460.0,0.00019452,2]
[367351861,1750759846427,-460.0,0.00019452,2]
[367351862,1750759846437,-460.0,0.00019452,2]
[367351863,1750759846447,-460.0,0.00019452,2]
[367351864,1750759846457,-460.0,0.00019452,2]
[367351865,1750759846467,-460.0,0.00019452,2]
[367351866,1750759846476,-460.0,0.00019452,2]
[367351867,1750759846486,-460.0,0.00019452,2]
[367351868,1750759846495,-285.44,0.00019452,2]
[367351869,1750759846505,-404.64189632,0.00019452,2]
[367351870,1750759846514,-460.0,0.00019452,2]
[367351871,1750759846525,-460.0,0.00019452,2]
[367351872,1750759846534,-545.12,0.00019452,2]
[367351873,1750759846544,-460.0,0.00019452,2]
[367351874,1750759846554,-460.0,0.00019452,2]
[367351875,1750759846566,-460.0,0.00019452,2]
[367351876,1750759846575,-460.0,0.00019452,2]
[367351877,1750759846585,-460.0,0.00019452,2]
[367351878,1750759846595,-474.36753628,0.00019452,2]
[367351879,1750759846605,-460.0,0.00019452,2]
[367351880,1750759846619,-525.14,0.00019452,2]
[367351881,1750759846630,-460.0,0.00019452,2]
[367351882,1750759846641,-460.0,0.00019452,2]
[367351883,1750759846651,-460.0,0.00019452,2]
[367351884,1750759846661,-460.0,0.00019452,2]
[367351885,1750759846670,-636.67,0.00019452,2]
[367351886,1750759846680,-349.12,0.00019452,2]
[367351887,1750759846690,-460.0,0.00019452,2]
[367351888,1750759846699,-460.0,0.00019452,2]
[367351889,1750759846709,-1855.01,0.00019452,2]
[367351890,1750759846719,-460.0,0.00019452,2]
[367351891,1750759846729,-2208.48,0.00019452,2]
[367351892,1750759846739,-460.0,0.00019452,2]
[367351893,1750759846750,-460.0,0.00019452,2]
[367351894,1750759846760,-460.0,0.00019452,2]
[367351895,1750759846770,-528.66598139,0.00019452,2]
[367351896,1750759846780,-460.0,0.00019452,2]
[367351897,1750759846790,-460.0,0.00019452,2]
[367351898,1750759846800,-1832.58,0.00019452,2]
[367351899,1750759846810,-454.77308088,0.00019452,2]
[367351900,1750759846964,-460.0,0.00019452,2]
[367351901,1750759846974,-460.0,0.00019452,2]
[367351902,1750759846984,-460.0,0.00019452,2]
[367351903,1750759846993,-733.2,0.00019452,2]
[367351904,1750759847003,-798.13,0.00019452,2]
[367351905,1750759847012,-460.0,0.00019452,2]
[367351906,1750759847022,-460.0,0.00019452,2]
[367351907,1750759847032,-460.0,0.00019452,2]
[367351908,1750759847043,-2811.19,0.00019452,2]
[367351909,1750759847053,-870.38,0.00019452,2]
[367351910,1750759847063,-524.2,0.00019452,2]
[367351911,1750759847072,-1127.63,0.00019452,2]
[367351912,1750759847081,-645.18,0.00019452,2]
[367351913,1750759847091,-460.0,0.00019452,2]
[367351914,1750759847101,-460.0,0.00019452,2]
[367351915,1750759847110,-460.0,0.00019452,2]
[367351916,1750759847120,-460.0,0.00019452,2]
[367351917,1750759847129,-502.31,0.00019452,2]
[367351918,1750759847138,-460.0,0.00019452,2]
[367351919,1750759847148,-460.0,0.00019452,2]
[367351920,1750759847157,-460.0,0.00019452,2]
[367351921,1750759847166,-481.36,0.00019452,2]
[367351922,1750759847176,-460.0,0.00019452,2]
[367351923,1750759847185,-460.0,0.00019452,2]
[367351924,1750759847194,-460.0,0.00019452,2]
[367351925,1750759847203,-460.0,0.00019452,2]
[367351926,1750759847212,-707.51,0.00019452,2]
[367351927,1750759847221,-1053.82,0.00019452,2]
[367351928,1750759847231,-460.0,0.00019452,2]
[367351929,1750759847240,-452.45934072,0.00019452,2]
[367351930,1750759847249,-460.0,0.00019452,2]
[367351931,1750759847263,-460.0,0.00019452,2]
[367351932,1750759847273,-1779.47,0.00019452,2]
[367351933,1750759847282,-566.65,0.00019452,2]
[367351934,1750759847293,-460.0,0.00019452,2]
[367351935,1750759847303,-460.0,0.00019452,2]
[367351936,1750759847312,-460.0,0.00019452,2]
[367351937,1750759847322,-460.0,0.00019452,2]
[367351938,1750759847332,-1505.43,0.00019452,2]
[367351939,1750759847341,-460.0,0.00019452,2]
[367351940,1750759847350,-503.77719931,0.00019452,2]
[367351941,1750759847360,-460.0,0.00019452,2]
[367351942,1750759847369,-1212.55,0.00019452,2]
[367351943,1750759847379,-460.0,0.00019452,2]
[367351944,1750759847388,-1057.25,0.00019452,2]
[367351945,1750759847398,-511.13,0.00019452,2]
[367351946,1750759847407,-460.0,0.00019452,2]
[367351947,1750759847416,-460.0,0.00019452,2]
[367351948,1750759847426,-460.0,0.00019452,2]
[367351949,1750759847435,-460.0,0.00019452,2]
[367351950,1750759847445,-6095.8,0.00019452,2]
[367351951,1750759847455,-460.0,0.00019452,2]
[367351952,1750759847464,-2726.16,0.00019452,2]
[367351953,1750759847474,-637.73,0.00019452,2]
[367351954,1750759847483,-460.0,0.00019452,2]
[367351955,1750759847492,-595.31,0.00019452,2]
[367351956,1750759847501,-460.0,0.00019452,2]
[367351957,1750759847511,-2258.65,0.00019452,2]
[367351958,1750759847520,-460.0,0.00019452,2]
[367351959,1750759847530,-1578.91,0.00019452,2]
[367351960,1750759847539,-651.82,0.00019452,2]
[367351961,1750759847549,-596.8,0.00019452,2]
[367351962,1750759847558,-575.73,0.00019452,2]
[367351963,1750759847567,-1076.64,0.00019452,2]
[367351964,1750759847576,-460.0,0.00019452,2]
[367351965,1750759847586,-460.0,0.00019452,2]
[367351966,1750759847595,-1134.99,0.00019452,2]
[367351967,1750759847605,-679.69,0.00019452,2]
[367351968,1750759847614,-460.0,0.00019452,2]
[367351969,1750759847623,-460.0,0.00019452,2]
[367351970,1750759847633,-460.0,0.00019452,2]
[367351971,1750759847643,-460.0,0.00019452,2]
[367351972,1750759847652,-519.18,0.00019452,2]
[367351973,1750759847661,-706.57,0.00019452,2]
[367351974,1750759847670,-460.0,0.00019452,2]
[367351975,1750759847680,-460.0,0.00019452,2]
[367351976,1750759847689,-3347.57,0.00019452,2]
[367351977,1750759847698,-694.08,0.00019452,2]
[367351978,1750759847708,-460.0,0.00019452,2]
[367351979,1750759847717,-460.0,0.00019452,2]
[367351980,1750759847726,-676.87,0.00019452,2]
[367351981,1750759847735,-460.0,0.00019452,2]
[367351982,1750759847745,-460.0,0.00019452,2]
[367351983,1750759847754,-460.0,0.00019452,2]
[367351984,1750759847765,-777.7,0.00019452,2]
[367351985,1750759847774,-927.92,0.00019452,2]
[367351986,1750759847783,-2860.27,0.00019452,2]
[367351987,1750759847793,-460.0,0.00019452,2]
[367351988,1750759847802,-460.0,0.00019452,2]
[367351989,1750759847811,-176.14583461,0.00019626,2]
[367351990,1750759847821,-500.0,0.00019689,2]
[367351991,1750759847830,-500.0,0.00019707,2]
[367351992,1750759847839,-500.0,0.00019719,2]
[367351993,1750759847848,-500.0,0.00019719,2]
[367351994,1750759847858,-500.0,0.00019719,2]
[367351995,1750759847867,-500.0,0.00019725,2]
[367351996,1750759847876,-500.0,0.00019725,2]
[367351997,1750759847885,-509.77352473,0.00019726,2]
[367351998,1750759847894,-460.0,0.00019726,2]
[367351999,1750759847903,-460.0,0.00019726,2]
[367352000,1750759847912,-460.0,0.00019726,2]
[367352001,1750759847922,-460.0,0.00019726,2]
[367352002,1750759847931,-460.0,0.00019726,2]
[367352003,1750759847940,-460.0,0.00019726,2]
[367352004,1750759847950,-460.0,0.00019726,2]
[367352005,1750759847959,-460.0,0.00019726,2]
[367352006,1750759847968,-460.0,0.00019726,2]
[367352007,1750759847977,-460.0,0.00019726,2]
[367352008,1750759847986,-709.89,0.00019726,2]
[367352009,1750759847995,-460.0,0.00019726,2]
[367352010,1750759848005,-460.0,0.00019726,2]
[367352011,1750759848014,-460.0,0.00019726,2]
[367352012,1750759848024,-460.0,0.00019726,2]
[367352013,1750759848033,-384.91243776,0.00019726,2]
[367352014,1750759848043,-460.0,0.00019726,2]
[367352015,1750759848053,-460.0,0.00019726,2]
[367352016,1750759848062,-460.0,0.00019726,2]
[367352017,1750759848071,-460.0,0.00019726,2]
[367352018,1750759848080,-460.0,0.00019726,2]
[367352019,1750759848089,-398.21807903,0.00019726,2]
[367352020,1750759848098,-460.0,0.00019726,2]
[367352021,1750759848107,-460.0,0.00019726,2]
[367352022,1750759848117,-545.12,0.00019726,2]
[367352023,1750759848126,-460.0,0.00019726,2]
[367352024,1750759848135,-248.55,0.00019726,2]
[367352025,1750759848145,-460.0,0.00019726,2]
[367352026,1750759848154,-460.0,0.00019726,2]
[367352027,1750759848164,-299.23336847,0.00019726,2]
[367352028,1750759848173,-525.14,0.00019726,2]
[367352029,1750759848182,-460.0,0.00019726,2]
[367352030,1750759848192,-460.0,0.00019726,2]
[367352031,1750759848202,-460.0,0.00019726,2]
[367352032,1750759848211,-460.0,0.00019726,2]
[367352033,1750759848221,-636.67,0.00019726,2]
[367352034,1750759848231,-460.0,0.00019726,2]
[367352035,1750759848241,-460.0,0.00019726,2]
[367352036,1750759848251,-1855.01,0.00019726,2]
[367352037,1750759848264,-2208.48,0.00019726,2]
[367352038,1750759848274,-460.0,0.00019726,2]
[367352039,1750759848284,-477.71060093,0.00019726,2]
[367352040,1750759848293,-460.0,0.00019726,2]
[367352041,1750759848305,-460.0,0.00019726,2]
[367352042,1750759848314,-1832.58,0.00019726,2]
[367352043,1750759848324,-460.0,0.00019726,2]
[367352044,1750759848334,-733.2,0.00019726,2]
[367352045,1750759848344,-798.13,0.00019726,2]
[367352046,1750759848354,-471.26148848,0.00019726,2]
[367352047,1750759848364,-460.0,0.00019726,2]
[367352048,1750759848374,-2811.19,0.00019726,2]
[367352049,1750759848383,-870.38,0.00019726,2]
[367352050,1750759848393,-524.2,0.00019726,2]
[367352051,1750759848403,-1127.63,0.00019726,2]
[367352052,1750759848412,-645.18,0.00019726,2]
[367352053,1750759848422,-460.0,0.00019726,2]
[367352054,1750759848431,-460.0,0.00019726,2]
[367352055,1750759848441,-460.0,0.00019726,2]
[367352056,1750759848450,-502.31,0.00019726,2]
[367352057,1750759848459,-460.0,0.00019726,2]
[367352058,1750759848469,-460.0,0.00019726,2]
[367352059,1750759848478,-460.0,0.00019726,2]
[367352060,1750759848488,-481.36,0.00019726,2]
[367352061,1750759848499,-460.0,0.00019726,2]
[367352062,1750759848511,-460.0,0.00019726,2]
[367352063,1750759848520,-460.0,0.00019726,2]
[367352064,1750759848530,-460.0,0.00019726,2]
[367352065,1750759848540,-707.51,0.00019726,2]
[367352066,1750759848550,-1053.82,0.00019726,2]
[367352067,1750759848559,-280.45928323,0.00019726,2]
[367352068,1750759848569,-460.0,0.00019726,2]
[367352069,1750759848578,-460.0,0.00019726,2]
[367352070,1750759848588,-1779.47,0.00019726,2]
[367352071,1750759848599,-566.65,0.00019726,2]
[367352072,1750759848609,-460.0,0.00019726,2]
[367352073,1750759848619,-460.0,0.00019726,2]
[367352074,1750759848629,-460.0,0.00019726,2]
[367352075,1750759848639,-460.0,0.00019726,2]
[367352076,1750759848648,-1505.43,0.00019726,2]
[367352077,1750759848657,-460.0,0.00019726,2]
[367352078,1750759848666,-460.0,0.00019726,2]
[367352079,1750759848675,-1212.55,0.00019726,2]
[367352080,1750759848684,-460.0,0.00019726,2]
[367352081,1750759848693,-1057.25,0.00019726,2]
[367352082,1750759848702,-511.13,0.00019726,2]
[367352083,1750759848712,-460.0,0.00019726,2]
[367352084,1750759848720,-460.0,0.00019726,2]
[367352085,1750759848730,-460.0,0.00019726,2]
[367352086,1750759848740,-460.0,0.00019726,2]
[367352087,1750759848750,-6095.8,0.00019726,2]
[367352088,1750759848759,-460.0,0.00019726,2]
[367352089,1750759848770,-2726.16,0.00019726,2]
[367352090,1750759848779,-637.73,0.00019726,2]
[367352091,1750759848789,-460.0,0.00019726,2]
[367352092,1750759848798,-595.31,0.00019726,2]
[367352093,1750759848807,-460.0,0.00019726,2]
[367352094,1750759848818,-2258.65,0.00019726,2]
[367352095,1750759848827,-460.0,0.00019726,2]
[367352096,1750759848837,-1578.91,0.00019726,2]
[367352097,1750759848847,-651.82,0.00019726,2]
[367352098,1750759848856,-575.73,0.00019726,2]
[367352099,1750759848867,-596.8,0.00019726,2]
[367352100,1750759848876,-1076.64,0.00019726,2]
[367352101,1750759848885,-460.0,0.00019726,2]
[367352102,1750759848895,-460.0,0.00019726,2]
[367352103,1750759848904,-1134.99,0.00019726,2]
[367352104,1750759848914,-679.69,0.00019726,2]
[367352105,1750759848923,-460.0,0.00019726,2]
[367352106,1750759848933,-460.0,0.00019726,2]
[367352107,1750759848943,-460.0,0.00019726,2]
[367352108,1750759848952,-706.57,0.00019726,2]
[367352109,1750759848962,-519.18,0.00019726,2]
[367352110,1750759848971,-460.0,0.00019726,2]
[367352111,1750759848981,-3347.57,0.00019726,2]
[367352112,1750759848990,-694.08,0.00019726,2]
[367352113,1750759848999,-460.0,0.00019726,2]
[367352114,1750759849009,-676.87,0.00019726,2]
[367352115,1750759849018,-460.0,0.00019726,2]
[367352116,1750759849027,-460.0,0.00019726,2]
[367352117,1750759849037,-460.0,0.00019726,2]
[367352118,1750759849047,-777.7,0.00019726,2]
[367352119,1750759849057,-2860.27,0.00019726,2]
[367352120,1750759849067,-927.92,0.00019726,2]
[367352121,1750759849076,-460.0,0.00019726,2]
[367352122,1750759849085,-205.80777558,0.00019726,2]
[367352123,1750759849095,-500.0,0.00019773,2]
[367352124,1750759849104,-151.0,0.00019808,2]
[367352125,1750759849114,-151.0,0.00019808,2]
[367352126,1750759849123,-151.0,0.00019808,2]
[367352127,1750759849133,-155.87488093,0.00019835,2]
[367352128,1750759849143,-166.07256633,0.00019835,2]
[367352129,1750759849152,-247.54744974,0.00019835,2]
[367352130,1750759849162,-500.0,0.00019866,2]
[367352131,1750759849171,-500.0,0.00019866,2]
[367352132,1750759849181,-504.51865876,0.00019866,2]
[367352133,1750759849190,-500.0,0.00019866,2]
[367352134,1750759849200,-500.0,0.00019866,2]
[367352135,1750759849210,-500.0,0.00019866,2]
[367352136,1750759849220,-395.5265441,0.00019879,2]
[367352137,1750759849229,-501.34280448,0.00019879,2]
[367352138,1750759849239,-500.0,0.00019893,2]
[367352139,1750759849248,-500.0,0.00019893,2]
[367352140,1750759849260,-137.16761793,0.00019901,2]
[367352141,1750759849461,-5552.21718438,0.00019177,2]
[367352142,1750759849473,-2433.11298595,0.00019177,2]
[367352143,1750759853365,278.23355,0.00024,30]
[367352144,1750759857370,150.0,0.00020634,30]
[367352145,1750759909416,429.66465155,0.00019077,2]
[367352146,1750760042220,206.96929204,0.00019078,2]
[367352147,1750760093413,1990.224852,0.00024,30]
[367352148,1750760312665,181.09813057,0.00019077,2]
[367352149,1750760378168,480.14811752,0.00018244,2]
[367352150,1750760378190,10000.0,0.00018244,2]
[367352151,1750760378212,10000.0,0.00018244,2]
[367352152,1750760378234,4419.85188248,0.00018244,2]
[367352153,1750760530487,290.780345,0.00018178,2]
[367352154,1750760587788,158.46086424,0.00019077,2]
[367352156,1750760647782,365.775305,0.00013699,2]
[367352157,1750760692602,1923.884024,0.00024,30]
[367352158,1750760702787,300.0,0.00019099,2]
[367352159,1750760703109,300.0,0.00019099,2]
[367352160,1750760707316,300.0,0.00019099,2]
[367352161,1750760707635,1200.0,0.00019099,2]
[367352162,1750760722760,151.0,0.000186,2]
[367352163,1750760723158,151.0,0.000177,2]
[367352164,1750760723665,151.0,0.000167,2]
[367352165,1750760724056,151.0,0.000158,2]
[367352166,1750760724438,151.0,0.000148,2]
[367352167,1750760762813,300.0,0.00019099,2]
[367352168,1750760763791,300.0,0.00019099,2]
[367352170,1750760793970,500.0,0.00019099,2]
[367352171,1750760794006,619.32056567,0.00019099,2]
[367352172,1750760794050,190.81103761,0.00019099,2]
[367352173,1750760794075,309.18896239,0.00019099,2]
[367352174,1750760794124,500.0,0.00019099,2]
[367352175,1750760794167,500.0,0.00019099,2]
[367352176,1750760794383,500.0,0.00019099,2]
[367352177,1750760794478,500.0,0.00019099,2]
[367352178,1750760794652,500.0,0.00019099,2]
[367352179,1750760794750,500.0,0.00019099,2]
[367352180,1750760794888,500.0,0.00019099,2]
[367352181,1750760794919,500.0,0.00019099,2]
[367352182,1750760794956,500.0,0.00019099,2]
[367352183,1750760795243,277.61724339,0.00019099,2]
[367352184,1750760799248,168.0,0.00018964,2]
[367352185,1750760803357,168.0,0.00018843,2]
[367352186,1750760809216,500.0,0.00019099,2]
[367352187,1750760809282,600.0,0.00019099,2]
[367352188,1750760809378,500.0,0.00019099,2]
[367352189,1750760809420,500.0,0.00019099,2]
[367352190,1750760812354,168.0,0.00018894,2]
[367352192,1750760821100,168.0,0.00018819,2]
[367352193,1750760823520,300.0,0.00019099,2]
[367352194,1750760868750,158.4608642,0.00019051,2]
[367352195,1750760869876,800.0,0.00018614,2]
[367352196,1750760882923,300.0,0.00019099,2]
[367352202,1750760943112,300.0,0.00019099,2]
[367352208,1750761002628,282.73293002,0.00019099,2]
[367352209,1750761002666,17.26706998,0.00019099,2]
[367352210,1750761003093,300.0,0.00019099,2]
[367352211,1750761003361,300.0,0.00019099,2]
[367352212,1750761005281,1200.0,0.00019099,2]
[367352215,1750761027771,151.0,0.000185,2]
[367352216,1750761028402,151.0,0.000176,2]
[367352217,1750761028733,151.0,0.000167,2]
[367352245,1750761031917,-460.0,0.000191,2]
[367352247,1750761031927,-460.0,0.000191,2]
[367352249,1750761031937,-460.0,0.000191,2]
[367352252,1750761031946,-460.0,0.000191,2]
[367352254,1750761031955,-8279.38152237,0.000191,2]
[367352256,1750761031967,-4074.16589593,0.000191,2]
[367352814,1750761038704,-667.1387,0.000191,2]
[367353076,1750761062782,300.0,0.00019099,2]
[367353077,1750761063577,300.0,0.00019099,2]
[367353078,1750761122636,300.0,0.00019099,2]
[367353079,1750761138994,259.67832034,0.00019,2]
[367353081,1750761182982,300.0,0.00019099,2]
[367353083,1750761242980,300.0,0.00019099,2]
[367353084,1750761272113,3600.0,0.00024,30]
[367353085,1750761291025,1952.499073,0.00024,30]
[367353086,1750761291358,1952.499073,0.00024,30]
[367353087,1750761292251,1952.499073,0.00024,30]
[367353088,1750761292527,1952.499073,0.00024,30]
[367353089,1750761292821,1952.499073,0.00024,30]
[367353090,1750761302378,300.0,0.00019099,2]
[367353091,1750761304987,1200.0,0.00019099,2]
[367353092,1750761307718,10000.0,0.00024,30]
[367353093,1750761341885,3000.0,0.00024,30]
[367353094,1750761364848,300.0,0.00019099,2]
[367353095,1750761365527,300.0,0.00019099,2]
[367353097,1750761419437,227.21853028,0.00019,2]
[367353098,1750761445839,3642.8360794,0.000191,2]
[367353099,1750761445862,10000.0,0.000191,2]
[367353100,1750761445884,9472.1418206,0.000191,2]
[367353101,1750761484419,300.0,0.00019099,2]
[367353102,1750761533056,227.8581794,0.00018169,2]
[367353103,1750761533077,10000.0,0.00018169,2]
[367353104,1750761533098,10000.0,0.00018169,2]
[367353105,1750761533125,4672.1418206,0.00018169,2]
[367353109,1750761644717,1000.0,0.00024,30]
[367353110,1750761699848,198.81621396,0.00019,2]
[367353112,1750761867695,355.551655,0.00013699,2]
[367353114,1750761894752,1627.082561,0.00024,30]
[367353115,1750761895176,1627.082561,0.00024,30]
[367353116,1750761895572,1627.082561,0.00024,30]
[367353117,1750761895755,1627.082561,0.00024,30]
[367353118,1750761896094,1627.082561,0.00024,30]
[367353119,1750761929766,250.0,0.00018878,2]
[367353121,1750761980260,173.96418725,0.00019,2]
[367353122,1750762005651,206.19763902,0.00018527,2]
[367353216,1750762238721,-474.31105081,0.00019078,2]
[367353217,1750762238733,-1020.0,0.00019078,2]
[367353218,1750762238745,-988.13171312,0.00019078,2]
[367353219,1750762238755,-300.0,0.00019099,2]
[367353220,1750762238765,-300.0,0.00019099,2]
[367353221,1750762238774,-300.0,0.00019099,2]
[367353222,1750762238784,-1200.0,0.00019099,2]
[367353223,1750762238794,-40263.68808239,0.000191,2]
[367353224,1750762238806,-528.89709118,0.000191,2]
[367353225,1750762238818,-31020.03935811,0.000191,2]
[367353226,1750762238829,-4747.49783594,0.000191,2]
[367353227,1750762238840,-1832.59836117,0.000191,2]
[367353259,1750762243448,-349.93587836,0.000191,2]
[367353280,1750762247114,-2691.60392979,0.000191,2]
[367353281,1750762306802,175.478782,0.00018527,2]
[367353283,1750762389804,187.5849628,0.00018679,2]
[367353284,1750762428577,233.0,0.00018724,2]
[367353286,1750762491700,1355.902134,0.00024,30]
[367353287,1750762553023,-151.04822017,0.00019094,2]
[367353288,1750762567675,11058.1005786,0.00018131,2]
[367353290,1750762812761,635.73390883,0.00023628,120]
[367353292,1750763092514,1310.705396,0.00024,30]
[367353293,1750763151296,229.1752038,0.00018241,2]
[367353294,1750763287259,-230.67103172,0.00019071,2]
[367353295,1750763291028,-209.94466518,0.00019071,2]
[367353296,1750763315622,-61.81260911,0.00019071,2]
[367353297,1750763315645,-113.42739375,0.00019076,2]
[367353298,1750763320591,-186.57260625,0.00019076,2]
[367353299,1750763320828,-54.20719507,0.00019076,2]
[367353300,1750763325133,-167.0,0.00019076,2]
[367353301,1750763327475,-167.0,0.00019076,2]
[367353302,1750763357838,-111.79280493,0.00019076,2]
[367353303,1750763357860,-55.20719507,0.00019076,2]
[367353304,1750763360071,-201.0,0.00019076,2]
[367353305,1750763393712,-243.79280493,0.00019076,2]
[367353306,1750763393741,-2.46273213,0.00019076,2]
[367353308,1750763410899,416.213599,0.00013699,2]
[367353330,1750763432321,-300.0,0.00019075,2]
[367353332,1750763432330,-300.0,0.00019075,2]
[367353334,1750763432339,-300.0,0.00019075,2]
[367353336,1750763432350,-1200.0,0.00019075,2]
[367353338,1750763432359,-322.55592217,0.00019076,2]
[367353340,1750763432369,-500.0,0.00019076,2]
[367353342,1750763432379,-500.0,0.00019076,2]
[367353344,1750763432388,-225.69717896,0.00019076,2]
[367353346,1750763432399,-274.30282104,0.00019076,2]